[Event "Titled Tuesday Blitz July 25 Early 2023"]
[White "ATM622"]
[Black "Gardezi, Arsal"]
[BlackFideId "30949521"]
[WhiteElo "2510"]
[BlackElo "2250"]
[Result "1-0"]
[Round "3"]
[TimeControl "180+2"]
[Date "2023.07.25"]
[WhiteClock "0:00:04"]
[BlackClock "0:00:09"]
[Board "164"]

1. d4 {[%clk 0:03:00]}  Nf6 {[%clk 0:02:59]} 2. c4 {[%clk 0:03:00]}  e6 {[%clk 0:02:59]} 3. g3 {[%clk 0:03:00]}  c5 {[%clk 0:02:50]} 4. d5 {[%clk 0:02:59]}  exd5 {[%clk 0:02:48]} 5. cxd5 {[%clk 0:03:00]}  d6 {[%clk 0:02:48]} 6. Nc3 {[%clk 0:02:58]}  g6 {[%clk 0:02:48]} 7. Bg2 {[%clk 0:02:58]}  Bg7 {[%clk 0:02:48]} 8. Nf3 {[%clk 0:02:58]}  O-O {[%clk 0:02:49]} 9. O-O {[%clk 0:02:58]}  Re8 {[%clk 0:02:45]} 10. Nd2 {[%clk 0:02:58]}  Bd7 {[%clk 0:02:44]} 11. Nc4 {[%clk 0:02:56]}  Qc7 {[%clk 0:02:42]} 12. a4 {[%clk 0:02:54]}  b6 {[%clk 0:02:37]} 13. Bf4 {[%clk 0:02:51]}  Nh5 {[%clk 0:02:27]} 14. Bxd6 {[%clk 0:02:46]}  Qc8 {[%clk 0:02:27]} 15. Bxb8 {[%clk 0:02:39]}  Qxb8 {[%clk 0:02:26]} 16. d6 {[%clk 0:02:37]}  a6 {[%clk 0:02:19]} 17. Nd5 {[%clk 0:02:34]}  b5 {[%clk 0:02:14]} 18. Ncb6 {[%clk 0:02:27]}  Ra7 {[%clk 0:02:11]} 19. axb5 {[%clk 0:02:16]}  Bxb5 {[%clk 0:02:02]} 20. d7 {[%clk 0:02:12]}  Bxd7 {[%clk 0:01:59]} 21. Nxd7 {[%clk 0:02:05]}  Rxd7 {[%clk 0:02:00]} 22. Rxa6 {[%clk 0:02:02]}  Qxb2 {[%clk 0:01:59]} 23. Qa4 {[%clk 0:02:00]}  Rdd8 {[%clk 0:01:53]} 24. e4 {[%clk 0:01:46]}  Nf6 {[%clk 0:01:49]} 25. Qc6 {[%clk 0:01:34]}  Re6 {[%clk 0:01:29]} 26. Qc7 {[%clk 0:01:23]}  Ree8 {[%clk 0:01:29]} 27. Qxc5 {[%clk 0:01:14]}  Nxe4 {[%clk 0:01:08]} 28. Ne7+ {[%clk 0:01:13]}  Kh8 {[%clk 0:01:07]} 29. Bxe4 {[%clk 0:01:12]}  Bf8 {[%clk 0:00:39]} 30. Ra7 {[%clk 0:01:09]}  Qf6 {[%clk 0:00:32]} 31. Nxg6+ {[%clk 0:00:34]}  hxg6 {[%clk 0:00:33]} 32. Qc6 {[%clk 0:00:30]}  Re6 {[%clk 0:00:28]} 33. Qb7 {[%clk 0:00:25]}  Bc5 {[%clk 0:00:21]} 34. Ra2 {[%clk 0:00:19]}  Rde8 {[%clk 0:00:20]} 35. Bd3 {[%clk 0:00:09]}  R6e7 {[%clk 0:00:17]} 36. Qd5 {[%clk 0:00:07]}  Re5 {[%clk 0:00:15]} 37. Qc4 {[%clk 0:00:07]}  R5e7 {[%clk 0:00:11]} 38. Qxc5 {[%clk 0:00:07]}  Re1 {[%clk 0:00:11]} 39. Rxe1 {[%clk 0:00:05]}  Rxe1+ {[%clk 0:00:12]} 40. Kg2 {[%clk 0:00:05]}  Qe6 {[%clk 0:00:11]} 41. Ra4 {[%clk 0:00:03]}  Qd7 {[%clk 0:00:09]} 42. Qc3+ {[%clk 0:00:03]}  Kg8 {[%clk 0:00:09]} 43. Qxe1 {[%clk 0:00:04]}  Qxa4 {[%clk 0:00:09]} 44. Qe3 {[%clk 0:00:04]}  Qc6+ {[%clk 0:00:10]} 45. Be4 {[%clk 0:00:04]}  Qe6 {[%clk 0:00:10]} 46. Qf3 {[%clk 0:00:04]}  f5 {[%clk 0:00:09]} 47. Bd5 {[%clk 0:00:04]} 1-0


[Site "https://www.chess.com"]

[Event "Titled Tuesday Blitz July 25 Early 2023"]
[White "Putri, Regita Desyari"]
[Black "Tikhonov, Viacheslav"]
[WhiteFideId "7109083"]
[BlackFideId "44196407"]
[WhiteElo "2213"]
[BlackElo "2509"]
[Result "1/2-1/2"]
[Round "3"]
[TimeControl "180+2"]
[Date "2023.07.25"]
[WhiteClock "0:00:05"]
[BlackClock "0:00:53"]
[Board "167"]

1. e4 {[%clk 0:02:59]}  c6 {[%clk 0:02:59]} 2. d4 {[%clk 0:02:58]}  d5 {[%clk 0:03:00]} 3. exd5 {[%clk 0:02:59]}  cxd5 {[%clk 0:03:00]} 4. c4 {[%clk 0:02:59]}  Nf6 {[%clk 0:03:01]} 5. Nc3 {[%clk 0:03:00]}  Nc6 {[%clk 0:02:58]} 6. Nf3 {[%clk 0:03:00]}  Bg4 {[%clk 0:02:52]} 7. cxd5 {[%clk 0:03:00]}  Nxd5 {[%clk 0:02:49]} 8. Be2 {[%clk 0:02:59]}  e6 {[%clk 0:02:48]} 9. O-O {[%clk 0:02:46]}  Be7 {[%clk 0:02:47]} 10. Qb3 {[%clk 0:02:37]}  O-O {[%clk 0:02:37]} 11. Be3 {[%clk 0:02:30]}  b6 {[%clk 0:02:27]} 12. Nxd5 {[%clk 0:02:21]}  Qxd5 {[%clk 0:02:27]} 13. Qxd5 {[%clk 0:01:28]}  exd5 {[%clk 0:02:28]} 14. Bb5 {[%clk 0:01:28]}  Bxf3 {[%clk 0:02:12]} 15. Bxc6 {[%clk 0:01:27]}  Rac8 {[%clk 0:02:12]} 16. Bb5 {[%clk 0:01:16]}  Be4 {[%clk 0:02:09]} 17. Rac1 {[%clk 0:01:16]}  Bd6 {[%clk 0:01:47]} 18. f3 {[%clk 0:01:05]}  Bf5 {[%clk 0:01:39]} 19. Ba6 {[%clk 0:00:58]}  Rxc1 {[%clk 0:01:31]} 20. Rxc1 {[%clk 0:00:59]}  Re8 {[%clk 0:01:31]} 21. Kf2 {[%clk 0:00:56]}  Bd7 {[%clk 0:01:28]} 22. g3 {[%clk 0:00:54]}  h5 {[%clk 0:01:26]} 23. Bb7 {[%clk 0:00:43]}  h4 {[%clk 0:01:21]} 24. Bxd5 {[%clk 0:00:38]}  hxg3+ {[%clk 0:01:21]} 25. hxg3 {[%clk 0:00:39]}  Bxg3+ {[%clk 0:01:19]} 26. Kxg3 {[%clk 0:00:40]}  Rxe3 {[%clk 0:01:17]} 27. Rc7 {[%clk 0:00:39]}  Be8 {[%clk 0:01:10]} 28. Rxa7 {[%clk 0:00:08]}  g5 {[%clk 0:01:06]} 29. Kf2 {[%clk 0:00:07]}  Rd3 {[%clk 0:01:01]} 30. Ra8 {[%clk 0:00:06]}  Kf8 {[%clk 0:00:59]} 31. Bc6 {[%clk 0:00:06]}  Rxd4 {[%clk 0:00:55]} 32. Rxe8+ {[%clk 0:00:06]}  Kg7 {[%clk 0:00:55]} 33. Re2 {[%clk 0:00:06]}  Rb4 {[%clk 0:00:56]} 34. a3 {[%clk 0:00:06]}  Rc4 {[%clk 0:00:57]} 35. Bb5 {[%clk 0:00:06]}  Rc5 {[%clk 0:00:58]} 36. Bd3 {[%clk 0:00:05]}  f5 {[%clk 0:00:58]} 37. b4 {[%clk 0:00:05]}  Rc3 {[%clk 0:00:57]} 38. Bxf5 {[%clk 0:00:05]}  Rxa3 {[%clk 0:00:58]} 39. b5 {[%clk 0:00:06]}  Kf6 {[%clk 0:00:58]} 40. Bd7 {[%clk 0:00:06]}  Ra4 {[%clk 0:00:57]} 41. Re6+ {[%clk 0:00:06]}  Kf7 {[%clk 0:00:58]} 42. Rxb6 {[%clk 0:00:06]}  Ra2+ {[%clk 0:00:59]} 43. Kg3 {[%clk 0:00:06]}  Rb2 {[%clk 0:01:00]} 44. Be6+ {[%clk 0:00:06]}  Kf6 {[%clk 0:00:59]} 45. Bd5+ {[%clk 0:00:06]}  Kg7 {[%clk 0:01:00]} 46. Be4 {[%clk 0:00:06]}  Rb4 {[%clk 0:01:00]} 47. Bc6 {[%clk 0:00:05]}  Kf6 {[%clk 0:00:59]} 48. Be4+ {[%clk 0:00:04]}  Kg7 {[%clk 0:00:59]} 49. Rg6+ {[%clk 0:00:04]}  Kh8 {[%clk 0:00:59]} 50. Rxg5 {[%clk 0:00:04]}  Rb2 {[%clk 0:00:57]} 51. Rc5 {[%clk 0:00:05]}  Rb4 {[%clk 0:00:57]} 52. Kf4 {[%clk 0:00:06]}  Rb2 {[%clk 0:00:56]} 53. Rc7 {[%clk 0:00:06]}  Rd2 {[%clk 0:00:55]} 54. b6 {[%clk 0:00:06]}  Rd5 {[%clk 0:00:53]} 55. Bxd5 {[%clk 0:00:05]} 1/2-1/2


[Site "https://www.chess.com"]

[Event "Titled Tuesday Blitz July 25 Early 2023"]
[White "djjohnnywoo"]
[Black "Khamdamova, Afruza"]
[BlackFideId "14210444"]
[WhiteElo "2144"]
[BlackElo "2507"]
[Result "0-1"]
[Round "3"]
[TimeControl "180+2"]
[Date "2023.07.25"]
[WhiteClock "0:00:03"]
[BlackClock "0:00:17"]
[Board "170"]

1. g3 {[%clk 0:03:00]}  d5 {[%clk 0:02:56]} 2. Bg2 {[%clk 0:03:00]}  Nf6 {[%clk 0:02:56]} 3. d3 {[%clk 0:02:59]}  c5 {[%clk 0:02:56]} 4. Nd2 {[%clk 0:02:59]}  Nc6 {[%clk 0:02:56]} 5. e4 {[%clk 0:02:58]}  e5 {[%clk 0:02:49]} 6. c3 {[%clk 0:02:54]}  Be6 {[%clk 0:02:48]} 7. Ngf3 {[%clk 0:02:46]}  Be7 {[%clk 0:02:48]} 8. h3 {[%clk 0:02:37]}  O-O {[%clk 0:02:48]} 9. Qe2 {[%clk 0:02:36]}  d4 {[%clk 0:02:44]} 10. c4 {[%clk 0:02:34]}  a6 {[%clk 0:02:41]} 11. O-O {[%clk 0:02:24]}  b5 {[%clk 0:02:41]} 12. b3 {[%clk 0:02:24]}  Qd7 {[%clk 0:02:33]} 13. Kh2 {[%clk 0:02:23]}  Rfb8 {[%clk 0:02:32]} 14. Ng5 {[%clk 0:02:17]}  b4 {[%clk 0:02:19]} 15. f4 {[%clk 0:02:06]}  h6 {[%clk 0:02:12]} 16. Nxe6 {[%clk 0:01:57]}  Qxe6 {[%clk 0:02:12]} 17. Nf3 {[%clk 0:01:55]}  exf4 {[%clk 0:01:58]} 18. gxf4 {[%clk 0:01:32]}  a5 {[%clk 0:01:45]} 19. f5 {[%clk 0:01:11]}  Bd6+ {[%clk 0:01:33]} 20. Kg1 {[%clk 0:01:00]}  Qe7 {[%clk 0:01:24]} 21. Nh4 {[%clk 0:00:59]}  Ne5 {[%clk 0:01:14]} 22. Bf4 {[%clk 0:00:53]}  a4 {[%clk 0:01:14]} 23. Kh2 {[%clk 0:00:49]}  Ra6 {[%clk 0:01:11]} 24. Rg1 {[%clk 0:00:47]}  Kh8 {[%clk 0:01:10]} 25. Qd2 {[%clk 0:00:38]}  Rba8 {[%clk 0:00:59]} 26. bxa4 {[%clk 0:00:36]}  Nxd3 {[%clk 0:00:51]} 27. Bxd6 {[%clk 0:00:20]}  Qxd6+ {[%clk 0:00:51]} 28. Kh1 {[%clk 0:00:20]}  Ne5 {[%clk 0:00:50]} 29. Nf3 {[%clk 0:00:13]}  Rxa4 {[%clk 0:00:49]} 30. Nxe5 {[%clk 0:00:13]}  Qxe5 {[%clk 0:00:50]} 31. Bf3 {[%clk 0:00:12]}  Ra3 {[%clk 0:00:49]} 32. Qg2 {[%clk 0:00:11]}  Rg8 {[%clk 0:00:49]} 33. Raf1 {[%clk 0:00:09]}  Nd7 {[%clk 0:00:40]} 34. Qg4 {[%clk 0:00:09]}  Qf6 {[%clk 0:00:39]} 35. Rg2 {[%clk 0:00:07]}  Ne5 {[%clk 0:00:39]} 36. Qf4 {[%clk 0:00:06]}  Rga8 {[%clk 0:00:17]} 37. Bh5 {[%clk 0:00:06]}  Rxa2 {[%clk 0:00:17]} 38. Rb2 {[%clk 0:00:04]}  Rxb2 {[%clk 0:00:17]} 39. Rg1 {[%clk 0:00:03]}  Raa2 {[%clk 0:00:17]} 0-1


[Site "https://www.chess.com"]

[Event "Titled Tuesday Blitz July 25 Early 2023"]
[White "Berezin, Viktor"]
[Black "Johnson, Ben"]
[WhiteFideId "14107872"]
[BlackFideId "2010917"]
[WhiteElo "2504"]
[BlackElo "2128"]
[Result "1-0"]
[Round "3"]
[TimeControl "180+2"]
[Date "2023.07.25"]
[WhiteClock "0:01:10"]
[BlackClock "0:00:24"]
[Board "171"]

1. d4 {[%clk 0:02:58]}  Nf6 {[%clk 0:02:58]} 2. Nf3 {[%clk 0:02:53]}  d5 {[%clk 0:02:58]} 3. c4 {[%clk 0:02:53]}  e6 {[%clk 0:02:58]} 4. g3 {[%clk 0:02:52]}  dxc4 {[%clk 0:02:58]} 5. Qa4+ {[%clk 0:02:52]}  Bd7 {[%clk 0:02:57]} 6. Qxc4 {[%clk 0:02:51]}  Bd6 {[%clk 0:02:35]} 7. Bg2 {[%clk 0:02:48]}  Bc6 {[%clk 0:02:33]} 8. O-O {[%clk 0:02:46]}  Nbd7 {[%clk 0:02:27]} 9. Nc3 {[%clk 0:02:44]}  O-O {[%clk 0:02:24]} 10. Bg5 {[%clk 0:02:35]}  h6 {[%clk 0:02:19]} 11. Bxf6 {[%clk 0:02:35]}  Nxf6 {[%clk 0:02:20]} 12. Rfe1 {[%clk 0:02:35]}  Ne4 {[%clk 0:02:14]} 13. Rac1 {[%clk 0:02:23]}  Nxc3 {[%clk 0:02:08]} 14. bxc3 {[%clk 0:02:21]}  Qe8 {[%clk 0:01:56]} 15. e4 {[%clk 0:02:19]}  Bb5 {[%clk 0:01:55]} 16. Qb3 {[%clk 0:02:17]}  e5 {[%clk 0:01:40]} 17. Qb2 {[%clk 0:02:11]}  Ba6 {[%clk 0:01:14]} 18. Bf1 {[%clk 0:01:42]}  Qa4 {[%clk 0:00:50]} 19. Bxa6 {[%clk 0:01:37]}  Qxa6 {[%clk 0:00:50]} 20. Qb3 {[%clk 0:01:35]}  Rfe8 {[%clk 0:00:46]} 21. Rb1 {[%clk 0:01:30]}  b6 {[%clk 0:00:42]} 22. Nh4 {[%clk 0:01:24]}  g6 {[%clk 0:00:38]} 23. Nxg6 {[%clk 0:01:24]}  Qd3 {[%clk 0:00:28]} 24. Rbd1 {[%clk 0:01:17]}  Qa6 {[%clk 0:00:28]} 25. dxe5 {[%clk 0:01:11]}  Bxe5 {[%clk 0:00:24]} 26. Rd7 {[%clk 0:01:10]} 1-0


[Site "https://www.chess.com"]

[Event "Titled Tuesday Blitz July 25 Early 2023"]
[White "Petrovic, Aleksa"]
[Black "Feliz Dotel, Dewar Bienvenido"]
[WhiteFideId "967629"]
[BlackFideId "6402801"]
[WhiteElo "2490"]
[BlackElo "2072"]
[Result "1-0"]
[Round "3"]
[TimeControl "180+2"]
[Date "2023.07.25"]
[WhiteClock "0:00:45"]
[BlackClock "0:00:02"]
[Board "173"]

1. e4 {[%clk 0:03:00]}  e5 {[%clk 0:02:59]} 2. Nf3 {[%clk 0:03:00]}  Nc6 {[%clk 0:02:59]} 3. Bc4 {[%clk 0:03:00]}  Nf6 {[%clk 0:02:59]} 4. d4 {[%clk 0:02:57]}  exd4 {[%clk 0:02:57]} 5. O-O {[%clk 0:02:56]}  Nxe4 {[%clk 0:02:48]} 6. Nc3 {[%clk 0:02:50]}  Nxc3 {[%clk 0:02:18]} 7. bxc3 {[%clk 0:02:48]}  d5 {[%clk 0:02:10]} 8. Re1+ {[%clk 0:02:44]}  Be7 {[%clk 0:02:10]} 9. Bd3 {[%clk 0:02:43]}  dxc3 {[%clk 0:02:07]} 10. Ng5 {[%clk 0:02:27]}  Be6 {[%clk 0:00:56]} 11. Rxe6 {[%clk 0:02:16]}  fxe6 {[%clk 0:00:53]} 12. Nxe6 {[%clk 0:02:16]}  Qd6 {[%clk 0:00:36]} 13. Nxg7+ {[%clk 0:02:12]}  Kd8 {[%clk 0:00:32]} 14. Nf5 {[%clk 0:01:43]}  Qe5 {[%clk 0:00:27]} 15. Bh6 {[%clk 0:01:39]}  Re8 {[%clk 0:00:19]} 16. Qg4 {[%clk 0:01:35]}  Qf6 {[%clk 0:00:16]} 17. Ng7 {[%clk 0:00:58]}  Nd4 {[%clk 0:00:06]} 18. Be3 {[%clk 0:00:47]}  Rg8 {[%clk 0:00:05]} 19. Bxd4 {[%clk 0:00:45]}  Rxg7 {[%clk 0:00:03]} 20. Qxg7 {[%clk 0:00:44]}  Qxg7 {[%clk 0:00:02]} 21. Bxg7 {[%clk 0:00:45]} 1-0


[Site "https://www.chess.com"]

[Event "Titled Tuesday Blitz July 25 Early 2023"]
[White "ivana_999"]
[Black "Perske, Thore"]
[BlackFideId "12902195"]
[WhiteElo "2048"]
[BlackElo "2490"]
[Result "0-1"]
[Round "3"]
[TimeControl "180+2"]
[Date "2023.07.25"]
[WhiteClock "0:00:11"]
[BlackClock "0:00:25"]
[Board "174"]

1. d4 {[%clk 0:03:00]}  d5 {[%clk 0:03:00]} 2. c4 {[%clk 0:03:01]}  c6 {[%clk 0:03:00]} 3. Nc3 {[%clk 0:03:01]}  Nf6 {[%clk 0:03:00]} 4. Nf3 {[%clk 0:03:01]}  dxc4 {[%clk 0:03:00]} 5. e4 {[%clk 0:02:54]}  b5 {[%clk 0:02:59]} 6. a4 {[%clk 0:02:54]}  b4 {[%clk 0:02:49]} 7. e5 {[%clk 0:02:54]}  Nd5 {[%clk 0:02:45]} 8. Ne4 {[%clk 0:02:42]}  c3 {[%clk 0:02:40]} 9. bxc3 {[%clk 0:02:40]}  bxc3 {[%clk 0:02:39]} 10. Qc2 {[%clk 0:02:28]}  Na6 {[%clk 0:02:33]} 11. Nxc3 {[%clk 0:02:21]}  Nab4 {[%clk 0:02:33]} 12. Qb3 {[%clk 0:02:19]}  Nxc3 {[%clk 0:02:25]} 13. Qxc3 {[%clk 0:02:19]}  a5 {[%clk 0:02:22]} 14. Bc4 {[%clk 0:01:58]}  e6 {[%clk 0:02:19]} 15. O-O {[%clk 0:01:57]}  Be7 {[%clk 0:02:19]} 16. Ba3 {[%clk 0:01:52]}  O-O {[%clk 0:02:18]} 17. Nd2 {[%clk 0:01:43]}  Ba6 {[%clk 0:02:00]} 18. Bxa6 {[%clk 0:01:40]}  Rxa6 {[%clk 0:02:01]} 19. f4 {[%clk 0:01:34]}  c5 {[%clk 0:01:33]} 20. dxc5 {[%clk 0:01:24]}  Bxc5+ {[%clk 0:01:33]} 21. Qxc5 {[%clk 0:01:17]}  Qxd2 {[%clk 0:01:33]} 22. Bxb4 {[%clk 0:01:14]}  Qxb4 {[%clk 0:01:32]} 23. Qxb4 {[%clk 0:01:11]}  axb4 {[%clk 0:01:32]} 24. Rfb1 {[%clk 0:01:09]}  Rb8 {[%clk 0:01:31]} 25. Rb3 {[%clk 0:01:06]}  g5 {[%clk 0:01:31]} 26. g3 {[%clk 0:01:03]}  Kg7 {[%clk 0:01:25]} 27. Kg2 {[%clk 0:01:03]}  Kg6 {[%clk 0:01:25]} 28. Kf3 {[%clk 0:01:01]}  h5 {[%clk 0:01:25]} 29. h3 {[%clk 0:00:56]}  Rc6 {[%clk 0:01:21]} 30. Rab1 {[%clk 0:00:53]}  Rc4 {[%clk 0:01:14]} 31. a5 {[%clk 0:00:44]}  h4 {[%clk 0:01:01]} 32. fxg5 {[%clk 0:00:38]}  hxg3 {[%clk 0:00:55]} 33. Kxg3 {[%clk 0:00:33]}  Kxg5 {[%clk 0:00:56]} 34. Rf1 {[%clk 0:00:24]}  Kg6 {[%clk 0:00:48]} 35. Rf6+ {[%clk 0:00:19]}  Kg7 {[%clk 0:00:48]} 36. a6 {[%clk 0:00:18]}  Rc3+ {[%clk 0:00:39]} 37. Rxc3 {[%clk 0:00:18]}  bxc3 {[%clk 0:00:40]} 38. Rf3 {[%clk 0:00:18]}  Rc8 {[%clk 0:00:40]} 39. Rf1 {[%clk 0:00:18]}  Kg6 {[%clk 0:00:35]} 40. Rc1 {[%clk 0:00:16]}  Kf5 {[%clk 0:00:34]} 41. h4 {[%clk 0:00:15]}  Kxe5 {[%clk 0:00:34]} 42. Kg4 {[%clk 0:00:14]}  Kf6 {[%clk 0:00:34]} 43. a7 {[%clk 0:00:14]}  Ra8 {[%clk 0:00:29]} 44. Rxc3 {[%clk 0:00:13]}  Rxa7 {[%clk 0:00:30]} 45. Rf3+ {[%clk 0:00:13]}  Kg6 {[%clk 0:00:30]} 46. h5+ {[%clk 0:00:11]}  Kg7 {[%clk 0:00:30]} 47. Kg5 {[%clk 0:00:11]}  Ra5+ {[%clk 0:00:30]} 48. Kh4 {[%clk 0:00:11]}  f6 {[%clk 0:00:26]} 49. Rg3+ {[%clk 0:00:11]}  Kh7 {[%clk 0:00:23]} 50. Rg6 {[%clk 0:00:09]}  Rf5 {[%clk 0:00:23]} 51. Rg3 {[%clk 0:00:07]}  e5 {[%clk 0:00:22]} 52. Ra3 {[%clk 0:00:07]}  Rf4+ {[%clk 0:00:22]} 53. Kg3 {[%clk 0:00:07]}  Kh6 {[%clk 0:00:21]} 54. Ra8 {[%clk 0:00:06]}  Kxh5 {[%clk 0:00:21]} 55. Rg8 {[%clk 0:00:05]}  Kh6 {[%clk 0:00:20]} 56. Kh3 {[%clk 0:00:03]}  Rf5 {[%clk 0:00:19]} 57. Kg4 {[%clk 0:00:03]}  Rg5+ {[%clk 0:00:18]} 58. Rxg5 {[%clk 0:00:04]}  fxg5 {[%clk 0:00:19]} 59. Kf5 {[%clk 0:00:04]}  Kh5 {[%clk 0:00:20]} 60. Kxe5 {[%clk 0:00:05]}  g4 {[%clk 0:00:20]} 61. Kf4 {[%clk 0:00:05]}  Kh4 {[%clk 0:00:20]} 62. Ke3 {[%clk 0:00:05]}  g3 {[%clk 0:00:21]} 63. Ke2 {[%clk 0:00:05]}  Kh3 {[%clk 0:00:21]} 64. Kf1 {[%clk 0:00:05]}  Kh2 {[%clk 0:00:22]} 65. Ke2 {[%clk 0:00:05]}  g2 {[%clk 0:00:22]} 66. Kf3 {[%clk 0:00:06]}  g1=Q {[%clk 0:00:22]} 67. Kf4 {[%clk 0:00:06]}  Qg6 {[%clk 0:00:22]} 68. Kf3 {[%clk 0:00:06]}  Qg5 {[%clk 0:00:22]} 69. Ke4 {[%clk 0:00:07]}  Qf6 {[%clk 0:00:22]} 70. Kd5 {[%clk 0:00:07]}  Qe7 {[%clk 0:00:21]} 71. Kc6 {[%clk 0:00:06]}  Qe5 {[%clk 0:00:21]} 72. Kd7 {[%clk 0:00:06]}  Qf6 {[%clk 0:00:21]} 73. Kc7 {[%clk 0:00:07]}  Qe6 {[%clk 0:00:21]} 74. Kb7 {[%clk 0:00:07]}  Qd6 {[%clk 0:00:21]} 75. Ka7 {[%clk 0:00:08]}  Qb4 {[%clk 0:00:21]} 76. Ka6 {[%clk 0:00:08]}  Kg3 {[%clk 0:00:21]} 77. Ka7 {[%clk 0:00:09]}  Kf4 {[%clk 0:00:22]} 78. Ka6 {[%clk 0:00:09]}  Ke5 {[%clk 0:00:23]} 79. Ka7 {[%clk 0:00:10]}  Kd6 {[%clk 0:00:24]} 80. Ka8 {[%clk 0:00:11]}  Kc7 {[%clk 0:00:25]} 81. Ka7 {[%clk 0:00:11]}  Qb7# {[%clk 0:00:25]} 0-1


[Site "https://www.chess.com"]

[Event "Titled Tuesday Blitz July 25 Early 2023"]
[White "Navyblue1"]
[Black "Mmukka"]
[WhiteElo "1921"]
[BlackElo "2488"]
[Result "0-1"]
[Round "3"]
[TimeControl "180+2"]
[Date "2023.07.25"]
[WhiteClock "0:00:02"]
[BlackClock "0:00:23"]
[Board "176"]

1. d4 {[%clk 0:02:56]}  Nf6 {[%clk 0:02:58]} 2. c4 {[%clk 0:02:56]}  g6 {[%clk 0:02:58]} 3. Nc3 {[%clk 0:02:54]}  Bg7 {[%clk 0:02:58]} 4. e4 {[%clk 0:02:53]}  d6 {[%clk 0:02:58]} 5. h3 {[%clk 0:02:52]}  O-O {[%clk 0:02:58]} 6. Be3 {[%clk 0:02:52]}  Nc6 {[%clk 0:02:55]} 7. Nf3 {[%clk 0:02:47]}  e5 {[%clk 0:02:54]} 8. d5 {[%clk 0:02:30]}  Nd4 {[%clk 0:02:53]} 9. Nxd4 {[%clk 0:02:29]}  exd4 {[%clk 0:02:53]} 10. Bxd4 {[%clk 0:02:24]}  Nxe4 {[%clk 0:02:44]} 11. Nxe4 {[%clk 0:02:22]}  Qh4 {[%clk 0:02:26]} 12. Bxg7 {[%clk 0:00:58]}  Qxe4+ {[%clk 0:02:22]} 13. Qe2 {[%clk 0:00:56]}  Qxe2+ {[%clk 0:02:20]} 14. Bxe2 {[%clk 0:00:54]}  Kxg7 {[%clk 0:02:21]} 15. O-O {[%clk 0:00:51]}  Re8 {[%clk 0:02:05]} 16. Bd3 {[%clk 0:00:46]}  h5 {[%clk 0:01:59]} 17. Rfe1 {[%clk 0:00:43]}  Bd7 {[%clk 0:01:59]} 18. Kf1 {[%clk 0:00:37]}  Kf6 {[%clk 0:01:57]} 19. h4 {[%clk 0:00:28]}  a5 {[%clk 0:01:49]} 20. b3 {[%clk 0:00:20]}  b6 {[%clk 0:01:44]} 21. f3 {[%clk 0:00:20]}  Rxe1+ {[%clk 0:01:06]} 22. Kxe1 {[%clk 0:00:19]}  Ke5 {[%clk 0:01:00]} 23. Kd2 {[%clk 0:00:18]}  Kd4 {[%clk 0:01:00]} 24. Re1 {[%clk 0:00:18]}  Re8 {[%clk 0:01:00]} 25. Re4+ {[%clk 0:00:16]}  Rxe4 {[%clk 0:00:57]} 26. Bxe4 {[%clk 0:00:17]}  Be8 {[%clk 0:00:48]} 27. g3 {[%clk 0:00:16]}  f6 {[%clk 0:00:46]} 28. Bd3 {[%clk 0:00:15]}  g5 {[%clk 0:00:46]} 29. Bf1 {[%clk 0:00:12]}  gxh4 {[%clk 0:00:43]} 30. gxh4 {[%clk 0:00:12]}  Bg6 {[%clk 0:00:43]} 31. Be2 {[%clk 0:00:08]}  f5 {[%clk 0:00:39]} 32. a4 {[%clk 0:00:08]}  f4 {[%clk 0:00:38]} 33. Bd1 {[%clk 0:00:08]}  Bb1 {[%clk 0:00:36]} 34. Be2 {[%clk 0:00:06]}  Bf5 {[%clk 0:00:25]} 35. Bf1 {[%clk 0:00:03]}  Bg6 {[%clk 0:00:24]} 36. Be2 {[%clk 0:00:03]}  Bb1 {[%clk 0:00:23]} 37. Bd1 {[%clk 0:00:02]}  Bd3 {[%clk 0:00:23]} 0-1


[Site "https://www.chess.com"]